bitfinex/quotes_SOLUSD_20250622
["timestamp","ask_amount","ask_price","bid_price","bid_amount"]
[1750601002998,53.68933323,129.12,129.07,35.03968437]
[1750601003210,18.64964886,129.1,129.05,42.78861889]
[1750601003411,34.5,129.09,129.05,7.74893452]
[1750601003720,60.5,129.14,129.08,35.03968437]
[1750601003918,18.64964886,129.17,129.13,35.03968437]
[1750601004106,53.14964886,129.17,129.14,35.03968437]
[1750601004905,34.5,129.17,129.14,35.03968437]
[1750601005109,34.5,129.17,129.15,35.03968437]
[1750601005604,5.504,129.19,129.16,7.74233508]
[1750601005805,40.004,129.19,129.16,42.78201945]
[1750601006006,40.004,129.19,129.17,35.03968437]
[1750601006205,5.504,129.19,129.17,35.03968437]
[1750601007001,5.504,129.19,129.16,42.78201945]
[1750601007335,34.5,129.21,129.17,35.03968437]
[1750601007528,34.5,129.21,129.17,42.78131162]
[1750601007816,18.64964886,129.2,129.14,61.03968437]
[1750601008035,18.64964886,129.2,129.12,27.10656753]
[1750601008036,44.64964886,129.2,129.12,7.74473358]
[1750601008236,18.64964886,129.19,129.13,35.03968437]
[1750601008424,35.03968437,129.18,129.14,35.03968437]
[1750601008623,53.68933323,129.18,129.14,35.03968437]
[1750601008825,53.68933323,129.18,129.12,7.74473358]
[1750601008826,18.64964886,129.16,129.13,35.03968437]
[1750601009016,18.64964886,129.16,129.12,7.74473358]
[1750601009017,18.64964886,129.16,129.12,42.78441795]
[1750601009200,18.64964886,129.16,129.13,35.03968437]
[1750601009397,69.51968437,129.17,129.13,35.03968437]
[1750601009622,34.48,129.17,129.15,35.03968437]
[1750601009820,34.48,129.17,129.16,35.03968437]
[1750601010021,34.48,129.2,129.16,35.03968437]
[1750601010339,34.48,129.21,129.18,35.03968437]
[1750601010522,69.51968437,129.21,129.14,27.10181757]
[1750601010844,18.64964886,129.2,129.16,35.03968437]
[1750601011027,69.51968437,129.21,129.17,35.03968437]
[1750601011028,34.48,129.21,129.17,35.03968437]
[1750601011637,34.48,129.21,129.18,7.74113639]
[1750601011940,69.51968437,129.21,129.17,35.03968437]
[1750601012140,18.64964886,129.2,129.17,42.7812616]
[1750601012338,18.64964886,129.2,129.17,7.74157723]
[1750601012644,18.64964886,129.2,129.17,42.7812616]
[1750601013231,34.48,129.21,129.17,42.7812616]
[1750601013646,69.51968437,129.21,129.17,42.7812616]
[1750601013846,79.68933323,129.2,129.11,19.36189768]
[1750601014035,35.03968437,129.17,129.13,35.03968437]
[1750601014217,69.51968437,129.17,129.13,35.03968437]
[1750601014414,69.51968437,129.17,129.11,7.74527449]
[1750601014415,18.64964886,129.16,129.11,7.74527449]
[1750601014654,34.48,129.17,129.13,35.03968437]
[1750601015025,34.48,129.17,129.11,33.74527449]
[1750601015254,34.48,129.17,129.13,35.03968437]
[1750601015428,34.48,129.17,129.14,35.03968437]
[1750601015824,34.48,129.17,129.13,42.7833052]
[1750601016340,34.48,129.17,129.14,35.03968437]
[1750601016544,18.64964886,129.19,129.15,35.03968437]
[1750601016753,53.10964886,129.2,129.17,35.03968437]
[1750601016942,18.64964886,129.22,129.19,35.03968437]
[1750601017149,18.64964886,129.22,129.14,26.0]
[1750601017150,35.03968437,129.21,129.14,26.0]
[1750601017472,35.03968437,129.2,129.16,35.03968437]
[1750601017645,18.64964886,129.21,129.16,35.03968437]
[1750601017849,35.03968437,129.2,129.16,35.03968437]
[1750601018089,53.68933323,129.21,129.16,35.03968437]
[1750601018257,34.46,129.22,129.16,7.74225308]
[1750601018454,18.806,129.24,129.2,35.03968437]
[1750601018757,5.5749,129.29,129.23,35.03968437]
[1750601018978,5.5749,129.29,129.24,35.03968437]
[1750601019268,40.61458437,129.29,129.21,26.0]
[1750601019473,18.64964886,129.27,129.23,35.03968437]
[1750601019780,34.46,129.27,129.2,35.03968437]
[1750601019952,35.03968437,129.21,129.17,26.0]
[1750601020151,35.03968437,129.2,129.15,7.74293457]
[1750601020347,53.68933323,129.19,129.12,7.74473358]
[1750601020572,34.46,129.18,129.14,35.03968437]
[1750601020767,34.46,129.18,129.16,35.03968437]
[1750601020971,34.46,129.18,129.15,35.03968437]
[1750601021670,34.46,129.18,129.14,7.74353414]
[1750601021869,18.64964886,129.17,129.12,7.74420547]
[1750601022070,35.03968437,129.14,129.1,7.74575195]
[1750601022316,34.46,129.13,129.09,35.03968437]
[1750601022476,69.49968437,129.13,129.07,7.74773378]
[1750601022794,69.49968437,129.13,129.08,35.03968437]
[1750601022994,34.46,129.13,129.1,35.03968437]
[1750601023197,34.46,129.13,129.11,35.03968437]
[1750601023497,34.46,129.13,129.09,35.03968437]
[1750601023805,35.03968437,129.15,129.11,7.74533343]
[1750601024568,35.03968437,129.14,129.11,7.74533343]
[1750601024769,35.03968437,129.15,129.11,7.74533343]
[1750601024989,35.03968437,129.14,129.11,7.74533343]
[1750601025184,18.64964886,129.17,129.11,62.14835139]
[1750601025369,34.44,129.17,129.12,35.03968437]
[1750601025570,26.0,129.18,129.14,35.03968437]
[1750601025770,53.68933323,129.19,129.15,7.74293457]
[1750601025972,75.02588437,129.2,129.15,42.78261894]
[1750601026275,5.5462,129.2,129.18,35.03968437]
[1750601026476,5.5462,129.2,129.16,35.03968437]
[1750601026875,18.64964886,129.19,129.15,7.74293457]
[1750601027088,53.68933323,129.19,129.15,7.74293457]
[1750601028390,18.64964886,129.19,129.15,7.74293457]
[1750601028698,53.68933323,129.19,129.15,7.74293457]
[1750601028876,53.68933323,129.19,129.15,42.78261894]
[1750601029079,18.64964886,129.17,129.12,35.44]
[1750601029304,18.64964886,129.17,129.13,42.78381818]
[1750601029595,53.68933323,129.19,129.14,35.03968437]
[1750601029796,53.68933323,129.19,129.13,7.74413381]
[1750601030011,53.68933323,129.19,129.14,35.03968437]
[1750601030310,18.64964886,129.19,129.16,35.03968437]
[1750601030508,5.5462,129.2,129.17,35.03968437]
[1750601030715,40.90018437,129.25,129.19,35.03968437]
[1750601030914,40.90018437,129.25,129.22,35.03968437]
[1750601030915,5.8605,129.25,129.22,35.03968437]
[1750601031123,5.8605,129.25,129.24,35.03968437]
[1750601031411,12.5321,129.29,129.24,35.03968437]
[1750601031704,12.5321,129.29,129.18,26.0]
[1750601031705,5.8605,129.3,129.27,35.03968437]
[1750601031883,5.8605,129.3,129.29,7.73455023]
[1750601032218,5.8605,129.3,129.29,42.7742346]
[1750601032374,5.8605,129.3,129.26,42.77602972]
[1750601032574,5.8605,129.3,129.28,35.03968437]
[1750601033070,5.8605,129.3,129.26,35.03968437]
[1750601033275,79.68933323,129.27,129.22,35.03968437]
[1750601033474,18.64964886,129.26,129.2,42.77962245]
[1750601033676,53.68933323,129.26,129.2,7.73993808]
[1750601033986,34.42,129.27,129.22,7.73874013]
[1750601034188,69.45968437,129.27,129.23,35.03968437]
[1750601034412,34.42,129.27,129.23,35.03968437]
[1750601034572,18.64964886,129.26,129.22,42.7784245]
[1750601034771,18.64964886,129.26,129.17,19.352977]
[1750601034772,35.03968437,129.25,129.17,19.352977]
[1750601034972,18.64964886,129.24,129.18,7.74113639]
[1750601035181,18.64964886,129.22,129.18,42.78082076]
[1750601035389,18.64964886,129.22,129.14,9.44]
[1750601035390,18.64964886,129.22,129.17,7.74165074]
[1750601035595,53.68933323,129.22,129.18,35.03968437]
[1750601035805,53.68933323,129.22,129.17,42.78133511]
[1750601036009,35.03968437,129.2,129.16,7.7421261]
[1750601036250,18.64964886,129.21,129.15,7.74277742]
[1750601036422,35.03968437,129.19,129.14,17.1835151]
[1750601036615,18.64964886,129.19,129.14,52.22319947]
[1750601037053,35.03968437,129.18,129.14,9.44]
[1750601037222,35.03968437,129.16,129.11,35.03968437]
[1750601037530,34.42,129.18,129.14,35.03968437]
[1750601037728,5.7312,129.2,129.16,35.03968437]
[1750601038032,5.7312,129.2,129.17,35.03968437]
[1750601038332,5.7312,129.2,129.16,35.03968437]
[1750601038515,5.7312,129.2,129.17,35.03968437]
[1750601038716,18.64964886,129.23,129.15,62.13995537]
[1750601038917,12.2249,129.24,129.2,35.03968437]
[1750601038918,35.03968437,129.24,129.2,35.03968437]
[1750601039116,53.68933323,129.24,129.15,27.100271]
[1750601039413,53.68933323,129.24,129.2,35.03968437]
[1750601039607,18.64964886,129.22,129.19,35.03968437]
[1750601039827,53.68933323,129.24,129.15,62.13995537]
[1750601040034,18.64964886,129.22,129.18,35.03968437]
[1750601040330,53.68933323,129.22,129.18,35.03968437]
[1750601040532,31.7312,129.25,129.19,35.03968437]
[1750601040533,18.64964886,129.24,129.19,35.03968437]
[1750601040737,53.68933323,129.24,129.19,35.03968437]
[1750601040935,5.7312,129.25,129.21,35.03968437]
[1750601041120,5.7312,129.25,129.24,35.03968437]
[1750601041318,5.005,129.3,129.24,61.03968437]
[1750601041642,5.005,129.3,129.24,26.0]
[1750601042048,5.005,129.3,129.29,35.03968437]
[1750601042353,53.68933323,129.31,129.23,7.73814129]
[1750601042513,18.64964886,129.31,129.27,35.03968437]
[1750601042853,34.4,129.33,129.3,35.03968437]
[1750601043060,35.03968437,129.35,129.3,35.03968437]
[1750601043267,69.43968437,129.36,129.26,26.0]
[1750601043415,34.4,129.36,129.3,35.03968437]
[1750601043615,18.64964886,129.34,129.3,35.03968437]
[1750601043922,17.1585,129.39,129.33,35.03968437]
[1750601044121,5.005,129.39,129.37,35.03968437]
[1750601044344,8.66246206,129.5,129.39,26.0]
[1750601044345,7.72260406,129.49,129.39,26.0]
[1750601044509,35.03968437,129.48,129.37,9.38]
[1750601044711,2.78345354,129.47,129.43,35.03968437]
[1750601045046,35.03968437,129.48,129.4,26.0]
[1750601045247,1.7441592,129.5,129.46,35.03968437]
[1750601045431,1.7441592,129.5,129.49,35.03968437]
[1750601045820,1.7441592,129.5,129.49,61.03968437]
[1750601046015,1.7441592,129.5,129.49,61.41193729]
[1750601046215,1.7441592,129.5,129.49,42.76228843]
[1750601046429,5.005,129.59,129.52,26.0]
[1750601046631,8.49388373,129.6,129.56,26.0]
[1750601047145,8.49388373,129.6,129.59,35.03968437]
[1750601047516,25.656,129.61,129.56,26.0]
[1750601047736,60.69568437,129.61,129.57,35.03968437]
[1750601047934,35.03968437,129.59,129.55,35.03968437]
[1750601048146,25.656,129.61,129.54,26.0]
[1750601048622,25.656,129.61,129.59,35.03968437]
[1750601048932,25.656,129.61,129.6,35.03968437]
[1750601049139,25.656,129.61,129.6,34.4902734]
[1750601049329,25.656,129.61,129.6,60.4902734]
[1750601049527,25.656,129.61,129.53,27.02076738]
[1750601049730,25.656,129.61,129.57,26.0]
[1750601049976,53.13992226,129.6,129.55,34.4902734]
[1750601050166,34.4902734,129.58,129.54,34.4902734]
[1750601050319,34.4902734,129.59,129.55,34.4902734]
[1750601050949,34.4902734,129.58,129.51,9.38]
[1750601051142,26.36576866,129.6,129.51,9.38]
[1750601051359,34.4902734,129.56,129.51,9.38]
[1750601051537,18.64964886,129.59,129.52,34.4902734]
[1750601051742,18.64964886,129.57,129.54,34.4902734]
[1750601051960,25.656,129.61,129.54,34.4902734]
[1750601052161,25.656,129.61,129.57,34.4902734]
[1750601052361,60.1462734,129.61,129.52,53.0228536]
[1750601052566,18.64964886,129.6,129.52,53.0228536]
[1750601052766,53.13992226,129.6,129.55,34.4902734]
[1750601052940,34.4902734,129.57,129.52,7.72081531]
[1750601053147,34.4902734,129.59,129.55,34.4902734]
[1750601053342,34.4902734,129.56,129.51,9.38]
[1750601053647,18.64964886,129.58,129.51,7.72135532]
[1750601053847,18.64964886,129.56,129.52,34.4902734]
[1750601054069,34.4902734,129.58,129.54,34.4902734]
[1750601054268,34.4902734,129.59,129.54,34.4902734]
[1750601054467,53.13992226,129.6,129.55,34.4902734]
[1750601055021,53.13992226,129.6,129.56,34.4902734]
[1750601055167,18.64964886,129.6,129.52,27.02261977]
[1750601055473,18.64964886,129.6,129.54,34.4902734]
[1750601055653,18.64964886,129.6,129.55,34.4902734]
[1750601055852,25.656,129.61,129.52,7.72058148]
[1750601056053,60.1462734,129.61,129.57,34.4902734]
[1750601056238,60.1462734,129.61,129.56,42.20854215]
[1750601056443,60.1462734,129.61,129.56,34.4902734]
[1750601056654,53.13992226,129.59,129.54,7.71952808]
[1750601056852,18.64964886,129.59,129.55,34.4902734]
[1750601057040,53.13992226,129.6,129.55,34.4902734]
[1750601057261,25.656,129.61,129.54,7.71952808]
[1750601057444,60.1462734,129.61,129.56,34.4902734]
[1750601057645,25.656,129.61,129.57,34.4902734]
[1750601057859,25.656,129.61,129.54,27.01858628]
[1750601058065,25.656,129.61,129.57,34.4902734]
[1750601058275,53.13992226,129.59,129.51,19.30300184]
[1750601058491,18.64964886,129.59,129.45,38.6222085]
[1750601058772,34.4902734,129.59,129.54,34.4902734]
[1750601058974,34.4902734,129.59,129.48,65.64632594]
[1750601058975,25.656,129.61,129.55,34.4902734]
[1750601059177,25.656,129.61,129.53,26.0]
[1750601059178,25.656,129.61,129.6,34.4902734]
[1750601059353,60.1462734,129.61,129.57,34.4902734]
[1750601059672,34.4902734,129.59,129.47,43.7]
[1750601059861,34.4902734,129.59,129.54,34.4902734]
[1750601060062,34.4902734,129.58,129.53,42.2102053]
[1750601060276,26.36594095,129.6,129.53,42.2102053]
[1750601060576,34.4902734,129.58,129.53,34.4902734]
[1750601060773,34.4902734,129.58,129.51,7.72141147]
[1750601061076,34.4902734,129.58,129.54,34.4902734]
[1750601061271,34.4902734,129.58,129.53,34.4902734]
[1750601061489,34.4902734,129.57,129.52,34.4902734]
[1750601061686,34.4902734,129.57,129.53,34.4902734]
[1750601061858,7.71629209,129.6,129.54,34.4902734]
[1750601062185,53.13992226,129.59,129.55,34.4902734]
[1750601062349,18.64964886,129.59,129.56,34.4902734]
[1750601062681,53.13992226,129.59,129.55,34.4902734]
[1750601062976,18.64964886,129.59,129.55,34.4902734]
[1750601063182,34.4902734,129.6,129.56,34.4902734]
[1750601063389,51.656,129.61,129.56,34.4902734]
[1750601063555,25.656,129.61,129.58,34.4902734]
[1750601063752,25.656,129.61,129.57,34.4902734]
[1750601064264,25.656,129.61,129.58,34.4902734]
[1750601064469,60.1462734,129.61,129.55,7.71902378]
[1750601064774,60.1462734,129.61,129.56,34.4902734]
[1750601065146,53.13992226,129.58,129.53,7.72021925]
[1750601065381,34.4902734,129.6,129.56,34.4902734]
[1750601065552,18.64964886,129.6,129.56,34.4902734]
[1750601066220,53.13992226,129.6,129.52,26.0]
[1750601066388,18.64964886,129.58,129.53,34.4902734]
[1750601066685,34.4902734,129.57,129.53,34.4902734]
[1750601066861,53.13992226,129.58,129.53,34.4902734]
[1750601067180,18.64964886,129.58,129.53,34.4902734]
[1750601067370,34.4902734,129.57,129.53,42.21037912]
[1750601067575,4.8995,129.59,129.53,7.72010572]
[1750601067773,53.13992226,129.6,129.56,34.4902734]
[1750601068564,18.64964886,129.58,129.53,7.72010572]
[1750601068769,9.67048122,129.61,129.57,34.4902734]
[1750601069087,44.16075462,129.61,129.56,34.4902734]
[1750601069263,34.4902734,129.58,129.54,34.4902734]
[1750601069459,18.64964886,129.57,129.54,34.4902734]
[1750601069778,34.4902734,129.58,129.53,34.4902734]
[1750601069972,34.4902734,129.56,129.52,42.21093067]
[1750601070171,18.64964886,129.6,129.52,7.72065727]
[1750601070374,34.4902734,129.57,129.53,34.4902734]
[1750601070686,34.4902734,129.59,129.55,34.4902734]
[1750601070885,18.64964886,129.59,129.55,34.4902734]
[1750601071277,18.64964886,129.59,129.55,34.88039023]
[1750601071465,18.64964886,129.59,129.56,7.71843161]
[1750601071778,18.64964886,129.56,129.5,7.72200772]
[1750601071979,34.88039023,129.51,129.47,34.88039023]
[1750601072184,18.64964886,129.52,129.43,27.04164412]
[1750601072384,18.64964886,129.49,129.44,34.88039023]
[1750601072589,18.64964886,129.49,129.43,7.72618403]
[1750601072590,34.88039023,129.48,129.43,7.72618403]
[1750601072768,18.64964886,129.49,129.41,7.7273781]
[1750601072963,34.88039023,129.49,129.44,34.88039023]
[1750601073176,3.8025,129.5,129.46,34.88039023]
[1750601073371,3.8025,129.5,129.49,34.88039023]
[1750601073668,3.8025,129.5,129.49,42.60299429]
[1750601073898,3.8025,129.5,129.47,34.88039023]
[1750601074068,3.8025,129.5,129.46,7.72439363]
[1750601074069,3.8025,129.5,129.46,42.60478386]
[1750601074268,3.8025,129.5,129.41,7.7273781]
[1750601074269,53.53003909,129.47,129.41,7.7273781]
[1750601074567,34.88039023,129.44,129.36,7.73036487]
[1750601074775,34.88039023,129.43,129.39,34.88039023]
[1750601074973,18.64964886,129.42,129.36,7.73036487]
[1750601075171,34.88039023,129.43,129.38,34.88039023]
[1750601075381,34.88039023,129.43,129.39,34.88039023]
[1750601075581,34.88039023,129.41,129.37,7.72949813]
[1750601075786,19.30998514,129.47,129.37,42.60988836]
[1750601075992,18.64964886,129.43,129.39,34.88039023]
[1750601076373,12.2865,129.48,129.42,34.88039023]
[1750601076600,18.64964886,129.47,129.42,34.88039023]
[1750601076890,3.8025,129.5,129.46,34.88039023]
[1750601077095,3.8025,129.5,129.45,34.88039023]
[1750601077096,53.53003909,129.49,129.45,34.88039023]
[1750601077395,18.64964886,129.49,129.44,34.88039023]
[1750601077695,7.72266572,129.49,129.41,7.7273781]
[1750601077874,18.64964886,129.44,129.39,7.72857253]
[1750601078074,18.64964886,129.44,129.39,42.60896276]
[1750601078395,53.53003909,129.44,129.39,42.60896276]
[1750601078571,18.64964886,129.44,129.39,42.60896276]
[1750601078892,18.64964886,129.39,129.35,34.88039023]
[1750601079193,18.64964886,129.39,129.31,7.73335395]
[1750601079194,18.64964886,129.37,129.33,34.88039023]
[1750601079367,60.88039023,129.42,129.31,27.06560633]
[1750601079368,18.64964886,129.41,129.31,53.06560633]
[1750601079568,18.64964886,129.37,129.33,42.6122005]
[1750601079875,18.64964886,129.37,129.28,22.2372]
[1750601079876,34.88039023,129.34,129.29,7.73455023]
[1750601080074,34.88039023,129.33,129.29,42.61494046]
[1750601080275,34.88039023,129.33,129.28,9.34]
[1750601080276,18.64964886,129.31,129.28,7.73502085]
[1750601080476,18.64964886,129.29,129.23,7.73814129]
[1750601080678,76.4892,129.33,129.25,34.88039023]
[1750601080893,18.64964886,129.3,129.23,27.08349453]
[1750601081194,18.64964886,129.3,129.26,34.88039023]
[1750601081396,18.64964886,129.3,129.27,34.88039023]
[1750601081582,16.1892,129.33,129.29,34.88039023]
[1750601081896,18.64964886,129.32,129.29,34.88039023]
[1750601082294,18.64964886,129.32,129.24,26.0]
[1750601082295,53.53003909,129.32,129.24,26.0]
[1750601082480,18.64964886,129.32,129.25,42.61733413]
[1750601082789,18.64964886,129.32,129.27,34.88039023]
[1750601082990,18.64964886,129.3,129.27,34.88039023]
[1750601083177,34.88039023,129.32,129.28,34.88039023]
[1750601083377,18.64964886,129.28,129.22,7.73874013]
[1750601083589,18.64964886,129.28,129.24,34.88039023]
[1750601083893,18.64964886,129.32,129.27,34.88039023]
[1750601084196,18.64964886,129.32,129.28,34.88039023]
[1750601084398,18.64964886,129.32,129.22,26.0]
[1750601084699,34.88039023,129.31,129.27,34.88039023]
[1750601084892,18.64964886,129.3,129.26,34.88039023]
[1750601085092,53.53003909,129.28,129.19,7.74053719]
[1750601085392,18.64964886,129.26,129.19,7.74053719]
[1750601085583,18.64964886,129.26,129.23,34.88039023]
[1750601085894,18.64964886,129.3,129.25,34.88039023]
[1750601086196,18.64964886,129.3,129.26,34.88039023]
[1750601086400,34.88039023,129.28,129.22,26.0]
[1750601086696,34.88039023,129.28,129.19,19.35134298]
[1750601086697,18.64964886,129.27,129.19,19.35134298]
[1750601086911,34.88039023,129.26,129.21,34.88039023]
[1750601087287,34.88039023,129.24,129.19,34.88039023]
[1750601087500,18.64964886,129.26,129.2,34.88039023]
[1750601087793,34.88039023,129.3,129.25,34.88039023]
[1750601087998,68.05321238,129.32,129.21,26.0]
[1750601087999,34.88039023,129.26,129.21,26.0]
[1750601088207,18.64964886,129.28,129.23,34.88039023]
[1750601088403,53.53003909,129.28,129.24,34.88039023]
[1750601088573,18.64964886,129.29,129.24,34.88039023]
[1750601088775,34.88039023,129.27,129.18,27.09397738]
[1750601088986,34.88039023,129.27,129.22,34.88039023]
[1750601089583,26.38445938,129.29,129.23,34.88039023]
[1750601089797,34.88039023,129.27,129.23,34.88039023]
[1750601090016,18.64964886,129.25,129.15,54.23699859]
[1750601090208,34.88039023,129.22,129.17,34.88039023]
[1750601090411,18.64964886,129.23,129.18,34.88039023]
[1750601090711,38.61499023,129.24,129.19,34.88039023]
[1750601090884,34.88039023,129.23,129.19,34.88039023]
[1750601091079,18.64964886,129.22,129.16,7.74233508]
[1750601091585,18.64964886,129.22,129.17,42.62205585]
[1750601091918,34.88039023,129.2,129.16,34.88039023]
[1750601092208,18.64964886,129.15,129.09,42.62692365]
[1750601092393,34.88039023,129.14,129.09,7.74653342]
[1750601092593,18.64964886,129.15,129.07,7.74773378]
[1750601092798,34.88039023,129.12,129.07,42.62812401]
[1750601092981,18.64964886,129.15,129.07,7.74773378]
[1750601093307,3.7346,129.16,129.09,34.88039023]
[1750601093490,3.7346,129.16,129.07,7.74773378]
[1750601093491,18.64964886,129.15,129.07,27.11706824]
[1750601093689,76.79003909,129.15,129.1,26.0]
[1750601093896,53.53003909,129.15,129.1,60.88039023]
[1750601094190,34.88039023,129.14,129.1,60.88039023]
[1750601094598,34.88039023,129.13,129.07,27.11706824]
[1750601094794,34.88039023,129.13,129.08,34.88039023]
[1750601094981,34.88039023,129.12,129.07,42.62812401]
[1750601095177,18.64964886,129.14,129.07,42.62812401]
[1750601095178,34.44,129.14,129.11,26.0]
[1750601095383,3.7346,129.16,129.13,34.88039023]
[1750601095701,3.7837,129.22,129.15,60.88039023]
[1750601095895,3.7837,129.22,129.19,34.88039023]
[1750601096096,3.7837,129.22,129.18,26.0]
[1750601096280,38.66409023,129.22,129.18,26.0]
[1750601096694,53.53003909,129.21,129.17,34.88039023]
[1750601096881,53.53003909,129.21,129.16,60.88039023]
[1750601097079,18.64964886,129.21,129.17,34.88039023]
[1750601097386,3.7837,129.22,129.18,26.0]
[1750601097589,3.7837,129.22,129.2,34.88039023]
[1750601097788,3.7837,129.22,129.19,42.62092742]
[1750601098387,38.66409023,129.22,129.18,68.62140679]
[1750601098594,34.88039023,129.21,129.17,42.62199187]
[1750601098807,34.88039023,129.21,129.17,7.74160164]
[1750601099018,34.88039023,129.2,129.12,7.74473358]
[1750601099187,34.88039023,129.18,129.14,34.88039023]
[1750601099508,18.64964886,129.19,129.14,34.88039023]
[1750601099682,45.94249486,129.22,129.15,7.74293457]
[1750601099683,34.88039023,129.18,129.15,7.74293457]
[1750601099884,34.88039023,129.19,129.14,42.62380279]
[1750601100110,34.88039023,129.19,129.15,34.88039023]
[1750601100298,34.88039023,129.19,129.14,42.62380279]
[1750601100817,34.88039023,129.18,129.14,42.62380279]
[1750601101118,26.38907636,129.21,129.12,7.74473358]
[1750601101119,18.64964886,129.21,129.12,7.74473358]
[1750601101284,3.7837,129.22,129.16,34.88039023]
[1750601101487,3.7837,129.22,129.21,34.88039023]
[1750601101914,3.7837,129.22,129.18,26.0]
[1750601102104,3.7837,129.22,129.21,34.88039023]
[1750601102308,47.24359023,129.29,129.21,34.88039023]
[1750601102309,3.0674,129.28,129.22,26.0]
[1750601102516,3.0674,129.28,129.21,34.88039023]
[1750601102517,3.0674,129.28,129.27,34.88039023]
[1750601103202,16.0349,129.33,129.27,34.88039023]
[1750601103424,3.0584,129.33,129.31,34.88039023]
[1750601103589,3.0584,129.33,129.24,87.96178917]
[1750601103799,3.0584,129.33,129.29,34.88039023]
[1750601103996,3.0584,129.33,129.24,87.96178917]
[1750601104233,3.0584,129.33,129.32,34.88039023]
[1750601104523,37.98469023,129.39,129.32,34.88039023]
[1750601104694,37.98469023,129.39,129.28,26.0]
[1750601104695,63.98469023,129.39,129.35,34.88039023]
[1750601104894,71.71328476,129.39,129.33,7.73191051]
[1750601105118,34.88039023,129.38,129.33,7.73191051]
[1750601105314,18.64964886,129.37,129.33,42.61230074]
[1750601105616,18.64964886,129.35,129.32,34.88039023]
[1750601105806,3.1043,129.39,129.29,27.07092581]
[1750601106006,53.53003909,129.38,129.34,34.88039023]
[1750601106197,53.53003909,129.38,129.33,34.88039023]
[1750601106396,34.88039023,129.37,129.33,34.88039023]
[1750601106807,53.53003909,129.38,129.33,34.88039023]
[1750601107123,61.25928706,129.38,129.33,34.88039023]
[1750601107325,3.1043,129.39,129.37,34.88039023]
[1750601107638,3.1043,129.39,129.38,34.88039023]
[1750601108697,3.1043,129.39,129.37,34.88039023]
[1750601109010,3.1043,129.39,129.38,42.60956011]
[1750601109216,56.60343909,129.45,129.38,42.60956011]
[1750601109408,21.72304886,129.45,129.38,7.72916988]
[1750601109605,56.60343909,129.45,129.4,34.88039023]
[1750601109805,34.88039023,129.41,129.33,26.0]
[1750601110098,53.53003909,129.41,129.36,34.88039023]
[1750601110299,34.88039023,129.4,129.36,34.88039023]
[1750601110498,18.64964886,129.35,129.27,7.73574688]
[1750601110801,34.88039023,129.31,129.26,34.88039023]
[1750601111140,34.88039023,129.29,129.23,7.73814129]
[1750601111316,34.88039023,129.28,129.24,34.88039023]
[1750601111504,34.88039023,129.28,129.23,42.61853152]
[1750601111707,42.19339046,129.31,129.21,34.88039023]
[1750601111708,34.88039023,129.25,129.21,34.88039023]
[1750601112011,53.53003909,129.24,129.2,34.88039023]
[1750601112209,53.53003909,129.24,129.18,19.35284099]
[1750601112210,18.64964886,129.22,129.18,34.88039023]
[1750601112423,53.53003909,129.22,129.17,7.74173569]
[1750601112614,53.53003909,129.22,129.17,42.62212592]
[1750601112813,53.53003909,129.22,129.17,7.74173569]
[1750601113129,18.64964886,129.21,129.18,7.74062969]
[1750601113331,34.72822101,129.23,129.18,42.4688507]
[1750601113502,26.0,129.24,129.19,34.72822101]
[1750601113706,18.64964886,129.23,129.2,34.72822101]
[1750601113926,53.37786987,129.21,129.17,34.72822101]
[1750601114106,34.72822101,129.19,129.15,34.72822101]
[1750601114926,34.72822101,129.19,129.14,34.72822101]
[1750601115137,34.44,129.23,129.15,34.72822101]
[1750601115318,18.64964886,129.22,129.17,34.72822101]
[1750601115513,34.44,129.23,129.14,7.74353414]
[1750601115514,18.64964886,129.2,129.16,34.72822101]
[1750601116211,12.7822,129.24,129.19,34.72822101]
[1750601116426,53.37786987,129.23,129.19,34.72822101]
[1750601116625,18.64964886,129.23,129.15,26.0]
[1750601116835,18.64964886,129.23,129.19,34.72822101]
[1750601117135,53.37786987,129.2,129.14,7.74353414]
[1750601117307,18.64964886,129.18,129.14,42.47175515]
[1750601117730,18.64964886,129.18,129.13,9.46]
[1750601117916,18.64964886,129.16,129.12,42.47248903]
[1750601118328,34.72822101,129.18,129.13,34.72822101]
[1750601118515,26.0,129.19,129.14,34.72822101]
[1750601118726,43.84,129.23,129.17,34.72822101]
[1750601118910,53.37786987,129.2,129.16,34.72822101]
[1750601119106,18.64964886,129.17,129.13,34.72822101]
[1750601119424,53.37786987,129.17,129.13,34.72822101]
[1750601119623,53.37786987,129.17,129.1,7.74593338]
[1750601119814,53.37786987,129.17,129.12,34.72822101]
[1750601120022,53.37786987,129.17,129.1,7.74593338]
[1750601120224,53.37786987,129.17,129.13,34.72822101]